Workbook

Sheet Introduction
B3: KSU-Detailed Cow Calf Budget
B5: Excel spreadsheet for beef cow/calf enterprise budgeting to evaluate potential income, costs and profitability
L8: Version- 10/1/2021
B28: INTRODUCTION
B29: The Kansas State University cost-return budgets were developed to serve as a barometer of profitability for various livestock industry enterprises. These budgets are NOT intended to represent any one operation. Each individual operation should adjust key inputs to reflect their own situation.
B31: INSTRUCTIONS FOR THE USER:
B32: Be sure to "Enable Content" and for the spreadsheet to function correctly and print macros to work. Blue values are inputs that should be changed from the defaults to match your operation. Green values are optional but will provide more information. Black values are automatically calculated.
B37: FOR MORE INFORMATION:
B38: Developed by:
B40: Robin Reid
B41: Extension Associate
B42: Department of Agricultural Economics
B43: Kansas State University
B44: robinreid@ksu.edu
B45: 785-532-0964
B47: ACKNOWLEDGEMENTS:
B48: The developer would like to thank the other members of the grant team, Dr. Jenny Ifft and Dr. Sandy Johnson, for their contributions and the K-State Farm Analyst team, LaVell Winsor, David Kehler and Tressie Mitzner, for their reviews of initial versions.
B51: This material is based upon work supported by USDA/NIFA under Award Number 2018-70027-28586
B56: Copyright 2021 AgManager.info, K-State Department of Agricultural Economics

Sheet Basic Info
A1: Date budget was prepared: | B1: 2022-01-01
A3: Herd Inventory
B4: Number of Head:
A5: Cows* | B5: 100 | C5: *represents breeding cow running average
A6: Bulls | B6: 5
A7: Yearling Replacement Heifers | B7: 15
C8: Average Weight:
A9: Anticipated Live Steer calves at weaning | B9: 45 | C9: 550
A10: Anticipated Live Heifer calves weaning | B10: 45 | C10: 500
A11: Anticipated Heifer calves retained | B11: 15
A12: Anticipated Cull Cows | B12: 15 | C12: 1300
A14: Weaning percentage: | B14: =SUM(B9:B10)/B5 -> 0.9
A15: Replacement percentage: | B15: =AVERAGE(B7,B11)/B5 -> 0.15
A16: Cull cow percentage: | B16: =B12/B5 -> 0.15
A18: Prices
A19: Weaned Steer calf: | B19: 180 | C19: $/cwt | D19: Price Forecasting Tools: | F19: https://beefbasis.com/
A20: Weaned Heifer calf: | B20: 170 | C20: $/cwt
A21: Cull Cows: | B21: 70 | C21: $/cwt
A23: KSU Detailed Cow-Calf Enterprise Budget Instructions
A27: A video tutorial on how to use the spreadsheet can be viewed | C27: HERE
A28: For benchmarking purposes, the Kansas Farm Management Association enterprise budgets can be found | F28: HERE

Sheet Pasture
A1: Pasture Information
B3: Required | E3: Optional information
A4: Name: | B4: Rent per Acre: | C4: Acres: | E4: # of Cows: | F4: # of bulls: | G4: # of Heifers: | H4: # of days grazed | I4: Cost per head: | J4: Cost per head per day:
A5: Pasture 1- May-Nov | B5: 25 | C5: 160 | E5: 24 | F5: 1 | G5: 0 | H5: 180 | I5: =IF(C5>0,(B5*C5)/SUM(E5,F5,G5),"") -> 160 | J5: =IF(C5>0,I5/H5,"") -> 0.8888888889
A6: Pasture 2- May-June | B6: 23 | C6: 80 | E6: 25 | F6: 1 | G6: 0 | H6: 90 | I6: 70.76923077 | J6: 0.7863247863
A7: Pasture 3- July-Nov | B7: 18 | C7: 80 | E7: 25 | F7: 1 | G7: 0 | H7: 90 | I7: 55.38461538 | J7: 0.6153846154
A8: Pasture 4- May-Nov | B8: 25 | C8: 320 | E8: 49 | F8: 2 | G8: 0 | H8: 180 | I8: 156.8627451 | J8: 0.871459695
A9: Pasture 5- May-Nov | B9: 20 | C9: 60 | E9: 0 | F9: 1 | G9: 15 | H9: 180 | I9: 75 | J9: 0.4166666667
A10: Bull pasture- Nov-Jan | B10: 15 | C10: 40 | E10: 0 | F10: 5 | G10: 0 | H10: 90 | I10: 120 | J10: 1.333333333
A11: Other | B11: 0 | C11: 0 | E11: 0 | F11: 0 | G11: 0 | H11: 0
A12: Other | B12: 0 | C12: 0 | E12: 0 | F12: 0 | G12: 0 | H12: 0
A13: Other | B13: 0 | C13: 0 | E13: 0 | F13: 0 | G13: 0 | H13: 0
A14: Other | B14: 0 | C14: 0 | E14: 0 | F14: 0 | G14: 0 | H14: 0
A15: Other | B15: 0 | C15: 0 | E15: 0 | F15: 0 | G15: 0 | H15: 0
A16: Other | B16: 0 | C16: 0 | E16: 0 | F16: 0 | G16: 0 | H16: 0
A17: Other | B17: 0 | C17: 0 | E17: 0 | F17: 0 | G17: 0 | H17: 0
A18: Other | B18: 0 | C18: 0 | E18: 0 | F18: 0 | G18: 0 | H18: 0
A19: Other | B19: 0 | C19: 0 | E19: 0 | F19: 0 | G19: 0 | H19: 0
A20: Other | B20: 0 | C20: 0 | E20: 0 | F20: 0 | G20: 0 | H20: 0
A21: Other | B21: 0 | C21: 0 | E21: 0 | F21: 0 | G21: 0 | H21: 0
A22: Other | B22: 0 | C22: 0 | E22: 0 | F22: 0 | G22: 0 | H22: 0
A23: Total Pasture Cost: | C23: =SUMPRODUCT(B5:B22,C5:C22) -> 17080
A24: Total Pasture Cost per Cow: | C24: =C23/'Basic Info'!B5 -> 170.8
A26: *Note that if you own the pasture you can either charge rent based on the going market rental rate to reflect your opportunity cost of grazing it instead of renting it out or you can charge based on your ownership costs (property tax, upkeep, etc.)

Sheet Residue&CoverCrop
A1: Crop Residue and Cover Crop Information
B3: Required | E3: Optional information
A4: Name: | B4: Rent per Acre*: | C4: Acres: | E4: # of cows: | F4: # of bulls: | G4: # of heifers: | H4: # of days grazed | I4: Cost per head: | J4: Cost per head per day:
A5: Corn Stalks 1- Nov-Dec | B5: 15 | C5: 120 | E5: 50 | F5: 0 | G5: 0 | H5: 60 | I5: =IF(C5>0,(B5*C5)/SUM(E5:G5),"") -> 36 | J5: =IF(C5>0,I5/H5,"") -> 0.6
A6: Corn Stalks 2-Nov-Dec | B6: 15 | C6: 120 | E6: 50 | F6: 0 | G6: 0 | H6: 60 | I6: =IF(C6>0,(B6*C6)/SUM(E6:G6),"") -> 36 | J6: =IF(C6>0,I6/H6,"") -> 0.6
A7: Corn Stalks 3 | B7: 0 | C7: 0 | E7: 0 | F7: 0 | G7: 0 | H7: 0
A8: Cover Crop 1- Heifers calves Nov-Dec | B8: 20 | C8: 35 | E8: 0 | F8: 0 | G8: 15 | H8: 60 | I8: 46.66666667 | J8: 0.7777777778
A9: Cover Crop 2- Heifer calves Jan. | B9: 20 | C9: 50 | E9: 0 | F9: 0 | G9: 15 | H9: 30 | I9: 66.66666667 | J9: 2.222222222
A10: Cover Crop 3- Jan cows | B10: 25 | C10: 80 | E10: 50 | F10: 0 | G10: 0 | H10: 30 | I10: 40 | J10: 1.333333333
A11: Cover Crop 4- Jan cows | B11: 25 | C11: 80 | E11: 50 | F11: 0 | G11: 0 | H11: 30 | I11: 40 | J11: 1.333333333
A12: Other | B12: 0 | C12: 0 | E12: 0 | F12: 0 | G12: 0 | H12: 0
A13: Other | B13: 0 | C13: 0 | E13: 0 | F13: 0 | G13: 0 | H13: 0
A14: Other | B14: 0 | C14: 0 | E14: 0 | F14: 0 | G14: 0 | H14: 0
A15: Other | B15: 0 | C15: 0 | E15: 0 | F15: 0 | G15: 0 | H15: 0
A16: Other | B16: 0 | C16: 0 | E16: 0 | F16: 0 | G16: 0 | H16: 0
A17: Other | B17: 0 | C17: 0 | E17: 0 | F17: 0 | G17: 0 | H17: 0
A18: Other | B18: 0 | C18: 0 | E18: 0 | F18: 0 | G18: 0 | H18: 0
A19: Other | B19: 0 | C19: 0 | E19: 0 | F19: 0 | G19: 0 | H19: 0
A20: Other | B20: 0 | C20: 0 | E20: 0 | F20: 0 | G20: 0 | H20: 0
A21: Other | B21: 0 | C21: 0 | E21: 0 | F21: 0 | G21: 0 | H21: 0
A22: Other | B22: 0 | C22: 0 | E22: 0 | F22: 0 | G22: 0 | H22: 0
A23: Total Cost: | C23: =SUMPRODUCT(B5:B22,C5:C22) -> 9300
A24: Total Cost per Cow: | C24: =C23/'Basic Info'!B5 -> 93
A26: *Note that if grazing your own fields you could charge a rent to the cow/calf enterprise in various ways. For crop residue, this could be the opportunity cost of what you could rent it to someone else for or nutritional value of the crop residue compared to alternative feedstuffs. For cover crops, this could be a portion of the establishment costs (seed, fertilizer, machinery, etc.) or nutritional value of the cover crop compared to alternative feedstuffs.

Sheet Hay&Forage
A1: Hay/Forage Types | E1: Amount of Hay/Forage | J1: Hay/Forage Summary
A2: Feed Name | B2: Price | C2: Unit | J2: Name: | K2: ="Total Pounds for "&'Basic Info'!B5 &" Cows" -> Total Pounds for 100 Cows | L2: ="Total Pounds for "&'Basic Info'!B6 &" Bulls" -> Total Pounds for 5 Bulls | M2: ="Total Pounds for "&'Basic Info'!B7 &" Heifers" -> Total Pounds for 15 Heifers | N2: Total Pounds Needed | O2: Total Tons Needed | P2: Total Cost
A3: Brome | B3: 80 | C3: Ton | E3: Cows: | J3: =A3 -> Brome | K3: =(SUMIF($E$5:$E$14,J3,$H$5:$H$14))*'Basic Info'!$B$5 -> 0 | L3: =(SUMIF($E$17:$E$26,J3,$H$17:$H$26))*'Basic Info'!$B$6 -> 10575 | M3: =(SUMIF($E$29:$E$38,J3,$H$29:$H$38))*'Basic Info'!$B$7 -> 0 | N3: =SUM(K3:M3) -> 10575 | O3: =N3/2000 -> 5.2875 | P3: =N3*(B3/(IF(C3="Bushel",56,IF(C3="Ton",2000,IF(C3="Cwt",100,1))))) -> 423
A4: Prairie Hay | B4: 65 | C4: Ton | E4: Name: | F4: pounds per day | G4: # of days | H4: Total | J4: Prairie Hay | K4: =(SUMIF($E$5:$E$14,J4,$H$5:$H$14))*'Basic Info'!$B$5 -> 121500 | L4: =(SUMIF($E$17:$E$26,J4,$H$17:$H$26))*'Basic Info'!$B$6 -> 10575 | M4: =(SUMIF($E$29:$E$38,J4,$H$29:$H$38))*'Basic Info'!$B$7 -> 9450 | N4: =SUM(K4:M4) -> 141525 | O4: =N4/2000 -> 70.7625 | P4: 4599.5625
A5: Sudan Hay | B5: 60 | C5: Ton | E5: Prairie Hay | F5: 13.5 | G5: 90 | H5: =IF(F5>0,F5*G5,"") -> 1215 | J5: Sudan Hay | K5: =(SUMIF($E$5:$E$14,J5,$H$5:$H$14))*'Basic Info'!$B$5 -> 0 | L5: =(SUMIF($E$17:$E$26,J5,$H$17:$H$26))*'Basic Info'!$B$6 -> 0 | M5: =(SUMIF($E$29:$E$38,J5,$H$29:$H$38))*'Basic Info'!$B$7 -> 0 | N5: 0 | O5: 0 | P5: 0
A6: Alfalfa Hay | B6: 140 | C6: Ton | E6: Corn Silage | F6: 46.1 | G6: 90 | H6: =IF(F6>0,F6*G6,"") -> 4149 | J6: Alfalfa Hay | K6: =(SUMIF($E$5:$E$14,J6,$H$5:$H$14))*'Basic Info'!$B$5 -> 0 | L6: =(SUMIF($E$17:$E$26,J6,$H$17:$H$26))*'Basic Info'!$B$6 -> 0 | M6: =(SUMIF($E$29:$E$38,J6,$H$29:$H$38))*'Basic Info'!$B$7 -> 0 | N6: 0 | O6: 0 | P6: 0
A7: Corn Silage | B7: 40 | C7: Ton | J7: Corn Silage | K7: =(SUMIF($E$5:$E$14,J7,$H$5:$H$14))*'Basic Info'!$B$5 -> 414900 | L7: =(SUMIF($E$17:$E$26,J7,$H$17:$H$26))*'Basic Info'!$B$6 -> 0 | M7: =(SUMIF($E$29:$E$38,J7,$H$29:$H$38))*'Basic Info'!$B$7 -> 21600 | N7: 436500 | O7: 218.25 | P7: 8730
A8: Sorghum Silage | B8: 35 | C8: Ton | J8: Sorghum Silage | K8: =(SUMIF($E$5:$E$14,J8,$H$5:$H$14))*'Basic Info'!$B$5 -> 0 | L8: =(SUMIF($E$17:$E$26,J8,$H$17:$H$26))*'Basic Info'!$B$6 -> 0 | M8: =(SUMIF($E$29:$E$38,J8,$H$29:$H$38))*'Basic Info'!$B$7 -> 0 | N8: 0 | O8: 0 | P8: 0
A9: Straw | B9: 40 | C9: Ton | J9: Straw | K9: =(SUMIF($E$5:$E$14,J9,$H$5:$H$14))*'Basic Info'!$B$5 -> 0 | L9: =(SUMIF($E$17:$E$26,J9,$H$17:$H$26))*'Basic Info'!$B$6 -> 0 | M9: =(SUMIF($E$29:$E$38,J9,$H$29:$H$38))*'Basic Info'!$B$7 -> 0 | N9: 0 | O9: 0 | P9: 0
A10: Other | J10: Other | K10: =(SUMIF($E$5:$E$14,J10,$H$5:$H$14))*'Basic Info'!$B$5 -> 0 | L10: =(SUMIF($E$17:$E$26,J10,$H$17:$H$26))*'Basic Info'!$B$6 -> 0 | M10: =(SUMIF($E$29:$E$38,J10,$H$29:$H$38))*'Basic Info'!$B$7 -> 0 | N10: 0 | O10: 0 | P10: 0
A11: Other | J11: Other | K11: =(SUMIF($E$5:$E$14,J11,$H$5:$H$14))*'Basic Info'!$B$5 -> 0 | L11: =(SUMIF($E$17:$E$26,J11,$H$17:$H$26))*'Basic Info'!$B$6 -> 0 | M11: =(SUMIF($E$29:$E$38,J11,$H$29:$H$38))*'Basic Info'!$B$7 -> 0 | N11: 0 | O11: 0 | P11: 0
A12: Other | J12: Other | K12: =(SUMIF($E$5:$E$14,J12,$H$5:$H$14))*'Basic Info'!$B$5 -> 0 | L12: =(SUMIF($E$17:$E$26,J12,$H$17:$H$26))*'Basic Info'!$B$6 -> 0 | M12: =(SUMIF($E$29:$E$38,J12,$H$29:$H$38))*'Basic Info'!$B$7 -> 0 | N12: 0 | O12: 0 | P12: 0
A13: Other | J13: Other | K13: =(SUMIF($E$5:$E$14,J13,$H$5:$H$14))*'Basic Info'!$B$5 -> 0 | L13: =(SUMIF($E$17:$E$26,J13,$H$17:$H$26))*'Basic Info'!$B$6 -> 0 | M13: =(SUMIF($E$29:$E$38,J13,$H$29:$H$38))*'Basic Info'!$B$7 -> 0 | N13: 0 | O13: 0 | P13: 0
A14: Other | J14: Other | K14: =(SUMIF($E$5:$E$14,J14,$H$5:$H$14))*'Basic Info'!$B$5 -> 0 | L14: =(SUMIF($E$17:$E$26,J14,$H$17:$H$26))*'Basic Info'!$B$6 -> 0 | M14: =(SUMIF($E$29:$E$38,J14,$H$29:$H$38))*'Basic Info'!$B$7 -> 0 | N14: 0 | O14: 0 | P14: 0
A15: Other | E15: Bulls: | J15: Other | K15: =(SUMIF($E$5:$E$14,J15,$H$5:$H$14))*'Basic Info'!$B$5 -> 0 | L15: =(SUMIF($E$17:$E$26,J15,$H$17:$H$26))*'Basic Info'!$B$6 -> 0 | M15: =(SUMIF($E$29:$E$38,J15,$H$29:$H$38))*'Basic Info'!$B$7 -> 0 | N15: 0 | O15: 0 | P15: 0
A16: Other | E16: Name: | F16: pounds per day | G16: # of days | H16: Total | J16: Other | K16: =(SUMIF($E$5:$E$14,J16,$H$5:$H$14))*'Basic Info'!$B$5 -> 0 | L16: =(SUMIF($E$17:$E$26,J16,$H$17:$H$26))*'Basic Info'!$B$6 -> 0 | M16: =(SUMIF($E$29:$E$38,J16,$H$29:$H$38))*'Basic Info'!$B$7 -> 0 | N16: 0 | O16: 0 | P16: 0
A17: Other | E17: Brome | F17: 23.5 | G17: 90 | H17: =IF(F17>0,F17*G17,"") -> 2115 | J17: Other | K17: =(SUMIF($E$5:$E$14,J17,$H$5:$H$14))*'Basic Info'!$B$5 -> 0 | L17: =(SUMIF($E$17:$E$26,J17,$H$17:$H$26))*'Basic Info'!$B$6 -> 0 | M17: =(SUMIF($E$29:$E$38,J17,$H$29:$H$38))*'Basic Info'!$B$7 -> 0 | N17: 0 | O17: 0 | P17: 0
A18: *If adding Hay/Forage, type name instead of "Other" | E18: Prairie Hay | F18: 23.5 | G18: 90 | H18: =IF(F18>0,F18*G18,"") -> 2115 | N18: Total Cost: | P18: =SUM(P3:P17) -> 13752.5625
H19: =IF(F19>0,F19*G19,"") ->  | N19: Total Cost per Cow: | P19: =P18/'Basic Info'!B5 -> 137.525625
J25: For basic cattle feeding information, including estimating forage intake for cattle, please refer to the K-State Beef Cow Nutrition Guide:
E27: Yearling Heifers: | J27: https://bookstore.ksre.ksu.edu/Item.aspx?catId=562&pubId=183
E28: Name: | F28: pounds per day | G28: # of days | H28: Total
E29: Corn Silage | F29: 16 | G29: 90 | H29: =IF(F29>0,F29*G29,"") -> 1440
E30: Prairie Hay | F30: 7 | G30: 90 | H30: =IF(F30>0,F30*G30,"") -> 630

Sheet Feedstuffs
A1: Feedstuffs Types | E1: Amount of Feedstuffs | J1: Feedstuff Summary
A2: Name: | B2: Price: | C2: Unit: | J2: Name: | K2: ="Total Pounds for "&'Basic Info'!B5 &" Cows" -> Total Pounds for 100 Cows | L2: ="Total Pounds for "&'Basic Info'!B6 &" Bulls" -> Total Pounds for 5 Bulls | M2: ="Total Pounds for "&'Basic Info'!B7 &" Heifers" -> Total Pounds for 15 Heifers | N2: Total Pounds Needed | O2: Total Cost
A3: Dried Distillers | B3: 200 | C3: Ton | E3: Cows: | J3: =A3 -> Dried Distillers | K3: =(SUMIF($E$5:$E$14,J3,$H$5:$H$14))*'Basic Info'!$B$5 -> 46500 | L3: =(SUMIF($E$17:$E$26,J3,$H$17:$H$26))*'Basic Info'!$B$6 -> 675 | M3: =(SUMIF($E$29:$E$38,J3,$H$29:$H$38))*'Basic Info'!$B$7 -> 2700 | N3: =SUM(K3:M3) -> 49875 | O3: =N3*(B3/(IF(C3="Bushel",VLOOKUP(A3,$A$22:$C$31,2,FALSE),IF(C3="Ton",2000,IF(C3="Cwt",100,1))))) -> 4987.5
A4: Soybean meal | B4: 350 | C4: Ton | E4: Name: | F4: pounds per day | G4: # of days | H4: Total | J4: Soybean meal | K4: =(SUMIF($E$5:$E$14,J4,$H$5:$H$14))*'Basic Info'!$B$5 -> 0 | L4: =(SUMIF($E$17:$E$26,J4,$H$17:$H$26))*'Basic Info'!$B$6 -> 0 | M4: =(SUMIF($E$29:$E$38,J4,$H$29:$H$38))*'Basic Info'!$B$7 -> 0 | N4: =SUM(K4:M4) -> 0 | O4: =N4*(B4/(IF(C4="Bushel",VLOOKUP(A4,$A$22:$C$31,2,FALSE),IF(C4="Ton",2000,IF(C4="Cwt",100,1))))) -> 0
A5: Corn | B5: 6 | C5: Bushel | E5: Dried Distillers | F5: 4.5 | G5: 90 | H5: =IF(F5>0,F5*G5,"") -> 405 | J5: Corn | K5: =(SUMIF($E$5:$E$14,J5,$H$5:$H$14))*'Basic Info'!$B$5 -> 0 | L5: =(SUMIF($E$17:$E$26,J5,$H$17:$H$26))*'Basic Info'!$B$6 -> 0 | M5: =(SUMIF($E$29:$E$38,J5,$H$29:$H$38))*'Basic Info'!$B$7 -> 0 | N5: 0 | O5: 0
A6: Oats | B6: 5 | C6: Bushel | E6: Dried Distillers | F6: 1 | G6: 60 | H6: =IF(F6>0,F6*G6,"") -> 60 | J6: Oats | K6: =(SUMIF($E$5:$E$14,J6,$H$5:$H$14))*'Basic Info'!$B$5 -> 0 | L6: =(SUMIF($E$17:$E$26,J6,$H$17:$H$26))*'Basic Info'!$B$6 -> 0 | M6: =(SUMIF($E$29:$E$38,J6,$H$29:$H$38))*'Basic Info'!$B$7 -> 0 | N6: 0 | O6: 0
A7: Wheat | B7: 6.5 | C7: Bushel | E7: Mineral | F7: 0.25 | G7: 365 | H7: 91.25 | J7: Wheat | K7: =(SUMIF($E$5:$E$14,J7,$H$5:$H$14))*'Basic Info'!$B$5 -> 0 | L7: =(SUMIF($E$17:$E$26,J7,$H$17:$H$26))*'Basic Info'!$B$6 -> 0 | M7: =(SUMIF($E$29:$E$38,J7,$H$29:$H$38))*'Basic Info'!$B$7 -> 0 | N7: 0 | O7: 0
A8: Mineral | B8: 850 | C8: Ton | J8: Mineral | K8: =(SUMIF($E$5:$E$14,J8,$H$5:$H$14))*'Basic Info'!$B$5 -> 9125 | L8: =(SUMIF($E$17:$E$26,J8,$H$17:$H$26))*'Basic Info'!$B$6 -> 456.25 | M8: =(SUMIF($E$29:$E$38,J8,$H$29:$H$38))*'Basic Info'!$B$7 -> 1368.75 | N8: 10950 | O8: 4653.75
A9: Other | C9: Ton | J9: Other | K9: =(SUMIF($E$5:$E$14,J9,$H$5:$H$14))*'Basic Info'!$B$5 -> 0 | L9: =(SUMIF($E$17:$E$26,J9,$H$17:$H$26))*'Basic Info'!$B$6 -> 0 | M9: =(SUMIF($E$29:$E$38,J9,$H$29:$H$38))*'Basic Info'!$B$7 -> 0 | N9: 0 | O9: 0
A10: Other | C10: Ton | J10: Other | K10: =(SUMIF($E$5:$E$14,J10,$H$5:$H$14))*'Basic Info'!$B$5 -> 0 | L10: =(SUMIF($E$17:$E$26,J10,$H$17:$H$26))*'Basic Info'!$B$6 -> 0 | M10: =(SUMIF($E$29:$E$38,J10,$H$29:$H$38))*'Basic Info'!$B$7 -> 0 | N10: 0 | O10: 0
A11: Other | C11: Ton | J11: Other | K11: =(SUMIF($E$5:$E$14,J11,$H$5:$H$14))*'Basic Info'!$B$5 -> 0 | L11: =(SUMIF($E$17:$E$26,J11,$H$17:$H$26))*'Basic Info'!$B$6 -> 0 | M11: =(SUMIF($E$29:$E$38,J11,$H$29:$H$38))*'Basic Info'!$B$7 -> 0 | N11: 0 | O11: 0
A12: Other | C12: Ton | J12: Other | K12: =(SUMIF($E$5:$E$14,J12,$H$5:$H$14))*'Basic Info'!$B$5 -> 0 | L12: =(SUMIF($E$17:$E$26,J12,$H$17:$H$26))*'Basic Info'!$B$6 -> 0 | M12: =(SUMIF($E$29:$E$38,J12,$H$29:$H$38))*'Basic Info'!$B$7 -> 0 | N12: 0 | O12: 0
A13: Other | C13: Ton | J13: Other | K13: =(SUMIF($E$5:$E$14,J13,$H$5:$H$14))*'Basic Info'!$B$5 -> 0 | L13: =(SUMIF($E$17:$E$26,J13,$H$17:$H$26))*'Basic Info'!$B$6 -> 0 | M13: =(SUMIF($E$29:$E$38,J13,$H$29:$H$38))*'Basic Info'!$B$7 -> 0 | N13: 0 | O13: 0
A14: Other | C14: Ton | J14: Other | K14: =(SUMIF($E$5:$E$14,J14,$H$5:$H$14))*'Basic Info'!$B$5 -> 0 | L14: =(SUMIF($E$17:$E$26,J14,$H$17:$H$26))*'Basic Info'!$B$6 -> 0 | M14: =(SUMIF($E$29:$E$38,J14,$H$29:$H$38))*'Basic Info'!$B$7 -> 0 | N14: 0 | O14: 0
A15: Other | C15: Ton | E15: Bulls: | J15: Other | K15: =(SUMIF($E$5:$E$14,J15,$H$5:$H$14))*'Basic Info'!$B$5 -> 0 | L15: =(SUMIF($E$17:$E$26,J15,$H$17:$H$26))*'Basic Info'!$B$6 -> 0 | M15: =(SUMIF($E$29:$E$38,J15,$H$29:$H$38))*'Basic Info'!$B$7 -> 0 | N15: 0 | O15: 0
A16: Other | C16: Ton | E16: Name: | F16: pounds per day | G16: # of days | H16: Total | J16: Other | K16: =(SUMIF($E$5:$E$14,J16,$H$5:$H$14))*'Basic Info'!$B$5 -> 0 | L16: =(SUMIF($E$17:$E$26,J16,$H$17:$H$26))*'Basic Info'!$B$6 -> 0 | M16: =(SUMIF($E$29:$E$38,J16,$H$29:$H$38))*'Basic Info'!$B$7 -> 0 | N16: 0 | O16: 0
A17: Other | C17: Ton | E17: Dried Distillers | F17: 1.5 | G17: 90 | H17: =IF(F17>0,F17*G17,"") -> 135 | J17: Other | K17: =(SUMIF($E$5:$E$14,J17,$H$5:$H$14))*'Basic Info'!$B$5 -> 0 | L17: =(SUMIF($E$17:$E$26,J17,$H$17:$H$26))*'Basic Info'!$B$6 -> 0 | M17: =(SUMIF($E$29:$E$38,J17,$H$29:$H$38))*'Basic Info'!$B$7 -> 0 | N17: 0 | O17: 0
A18: *If adding Feedstuffs, type name instead of "Other" | E18: Mineral | F18: 0.25 | G18: 365 | H18: =IF(F18>0,F18*G18,"") -> 91.25 | M18: Total Cost: | O18: =SUM(O3:O17) -> 9641.25
H19: =IF(F19>0,F19*G19,"") ->  | M19: Total Cost per Cow: | O19: =O18/'Basic Info'!B5 -> 96.4125
A22: Feedstuff bushel weights
A23: Corn | B23: 56 | C23: pounds
A24: Oats | B24: 32 | C24: pounds
A25: Wheat | B25: 60 | C25: pounds
A26: Other | C26: pounds
A27: Other | C27: pounds | E27: Heifers:
A28: Other | C28: pounds | E28: Name: | F28: pounds per day | G28: # of days | H28: Total
A29: Other | C29: pounds | E29: Dried Distillers | F29: 2 | G29: 90 | H29: =IF(F29>0,F29*G29,"") -> 180
A30: Other | C30: pounds | E30: Mineral | F30: 0.25 | G30: 365 | H30: =IF(F30>0,F30*G30,"") -> 91.25
A31: Other | C31: pounds

Sheet Non-Feed Costs
A1: Non-Feed Cost Detail
A3: Veterinary Care and Pharmaceuticals
B4: Cost per Head | C4: Head | D4: Total
A5: Annual Cow Vaccination/Parasite Control Cost | B5: 15 | C5: ='Basic Info'!B5 -> 100 | D5: =B5*C5 -> 1500
A6: Annual Bull Vaccination/Parasite Control Cost | B6: 10 | C6: ='Basic Info'!B6 -> 5 | D6: =B6*C6 -> 50
A7: Heifer Vaccination/Parasite Control Cost | B7: 10 | C7: ='Basic Info'!B7 -> 15 | D7: 150
A8: Calf Vaccination/Parasite Control Cost | B8: 6 | C8: ='Basic Info'!B9+'Basic Info'!B10 -> 90 | D8: 540
A9: Annual Bull Breeding Soundness Exam | B9: 50 | C9: ='Basic Info'!B6 -> 5 | D9: 250
A10: Misc. Drugs and Emergency Vet Bills (total) | B10: 1500 | D10: =B10 -> 1500
B11: Total Cost: | D11: =SUM(D5:D10) -> 3990
B12: Total Cost per Cow: | D12: =D11/'Basic Info'!B5 -> 39.9
A14: Marketing/Sale Barn Fees (including commission, yardage, insurance, advertising, etc.)
B15: Cost | C15: Head | D15: Total
A16: Calf Sales Commission (per head) | B16: 15 | C16: ='Basic Info'!B9+('Basic Info'!B10-'Basic Info'!B11) -> 75 | D16: =B16*C16 -> 1125
A17: Cull Cow Sales Commission (per head) | B17: 15 | C17: ='Basic Info'!B12 -> 15 | D17: =B17*C17 -> 225
A18: Other Marketing fees (total) | B18: 0 | D18: =B18 -> 0
B19: Total Cost: | D19: =SUM(D16:D18) -> 1350
B20: Total Cost per Cow: | D20: =D19/'Basic Info'!B5 -> 13.5
A22: Bull Cost | D22: A.I. Cost
A23: Average Purchase Price | B23: 6000 | D23: Product | E23: Cost per Head | F23: # of Head | G23: Total
A24: Average Cull Value | B24: =0.7*2000 -> 1400 | D24: Synchronization | E24: 20 | F24: 0 | G24: =E24*F24 -> 0
A25: Number of Years Used | B25: 4 | D25: Semen | E25: 30 | F25: 0 | G25: =E25*F25 -> 0
A26: Yearly cost per bull: | B26: =((B23-B24)/B25) -> 1150 | D26: A.I. Tech fee & Chute charge | E26: 10 | F26: 0 | G26: =E26*F26 -> 0
A27: Number of Bulls: | B27: ='Basic Info'!B6 -> 5 | D27: Other | E27: 0 | F27: 0 | G27: 0
A28: Total Cost: | B28: =B26*B27 -> 5750 | E28: Total Cost: | G28: =SUM(G24:G27) -> 0
A29: Total Cost per Cow: | B29: =B28/'Basic Info'!B5 -> 57.5 | E29: Total Cost per Cow: | G29: =G28/'Basic Info'!B5 -> 0
D30: Additional information on analyzing A.I. costs can be found | G30: HERE
A31: Hired Labor
A32: Annual Salary | B32: 0
A33: and/or
A34: Hours per year | B34: 200
A35: Dollars per hour | B35: 15
A37: Total Cost: | B37: =B32+(B34*B35) -> 3000
A38: Total Cost per Cow: | B38: =B37/'Basic Info'!B5 -> 30
A40: Machinery/Equipment Depreciation
B41: Current Value | C41: Outstanding Loan Balance | D41: % Used for Cow/Calf Operation | E41: Annual Depr. Percentage | F41: Annual Depr.
A42: Tractor | B42: 20000 | C42: 15000 | D42: 0.5 | E42: 0.1 | F42: =B42*E42*D42 -> 1000
A43: Feed Wagon | B43: 20000 | C43: 10000 | D43: 1 | E43: 0.1 | F43: =B43*E43*D43 -> 2000
A44: Skid Steer | B44: 20000 | C44: 0 | D44: 0.5 | E44: 0.1 | F44: 1000
A45: 4-Wheeler | B45: 5000 | C45: 0 | D45: 0.75 | E45: 0.1 | F45: 375
A46: Livestock Shed and Corrals | B46: 30000 | C46: 0 | D46: 1 | E46: 0.05 | F46: 1500
A47: Other | F47: 0
A48: Other | F48: 0
A49: Other | F49: 0
A50: Other | F50: 0
A51: Other | F51: 0
A52: Other | F52: 0
A53: Other | F53: =B53*E53*D53 -> 0
E54: Total Cost: | F54: =SUM(F42:F53) -> 5875
E55: Total Cost per Cow: | F55: =F54/'Basic Info'!B5 -> 58.75
A57: Interest Costs
B58: Current Balance | C58: Annual Interest Rate | D58: Estimated Interest cost
A59: Cattle Operating Loan(s)* | B59: 30000 | C59: 0.06 | D59: =B59*C59 -> 1800 | E59: *Only include portion of loan used for the cowherd if the same operating loan is used on the whole farm
A60: Cattle Ownership Loan(s) | B60: 10000 | C60: 0.055 | D60: =B60*C60 -> 550
A61: Machinery/Equipment Loan(s)* | B61: =SUM(C42:C53) -> 25000 | C61: 0.045 | D61: =B61*C61 -> 1125 | E61: *Defaults to the sum of "Outstanding Loan Balance" column above but can be overridden
A62: Land Loan(s) | B62: 0 | C62: 0 | D62: =B62*C62 -> 0
A63: Other | D63: =B63*C63 -> 0
B64: Total Cost: | D64: =SUM(D59:D63) -> 3475
B65: Total Cost per Cow: | D65: =D64/'Basic Info'!B5 -> 34.75
A68: Are you purchasing Replacement Heifers? | C68: No
A69: Costs below are only used in the budget it "yes" is selected above. If raising replacements heifers, costs are already captured in reduced heifer calf income and cost of raising heifers
A70: Replacement Heifer Cost | D70: Cow Depreciation
A71: Cost of Purchased Replacement Heifer | B71: 1000 | D71: Starting Value | E71: =B71 -> 1000
A72: Number of Replacement Heifers Purchased per year* | B72: 15 | D72: Average Years in Herd | E72: 6
D73: Depreciation per Year | E73: =E71/E72 -> 166.6666667
A74: Total Cost: | B74: =B72*B71 -> 15000 | D74: Total Cost: | E74: =E73*'Basic Info'!B5 -> 16666.66667
A75: Total Cost per Cow: | B75: =B74/'Basic Info'!B5 -> 150 | D75: Total Cost per Cow: | E75: =E73 -> 166.6666667
A76: *Should be equivalent to cull cows sold each year for the cow herd size to be stable

Sheet Cow-Calf Budget
A1: Detailed Cow-Calf Enterprise Budget | K1: ='Basic Info'!B1 -> 2022-01-01
A3: Revenue: | B3: Price | C3: Unit | E3: Qty | F3: Unit | H3: Per cow % | J3: Total per Year per Cow | K3: Total per Year Entire Herd | M3: ='Basic Info'!B5 -> 100 | N3: Total Cows
A4: Weaned Steer Calves | B4: ='Basic Info'!B19 -> 180 | C4: per cwt | D4: x | E4: ='Basic Info'!C9 -> 550 | F4: lbs | G4: x | H4: ='Basic Info'!B9/'Basic Info'!B5 -> 0.45 | I4: = | J4: =((B4*E4)/100)*H4 -> 445.5 | K4: =((B4*E4)/100)*'Basic Info'!B9 -> 44550 | M4: ='Basic Info'!B9 -> 45 | N4: Steer Calves weaned and sold
A5: Weaned Heifer Calves | B5: ='Basic Info'!B20 -> 170 | C5: per cwt | D5: x | E5: ='Basic Info'!C10 -> 500 | F5: lbs | G5: x | H5: =('Basic Info'!B10-'Basic Info'!B11)/'Basic Info'!B5 -> 0.3 | I5: = | J5: =((B5*E5)/100)*H5 -> 255 | K5: =((B5*E5)/100)*('Basic Info'!B10-'Basic Info'!B11) -> 25500 | M5: ='Basic Info'!B10-'Basic Info'!B11 -> 30 | N5: ="Heifer Calves weaned and sold ( " & 'Basic Info'!B11 & " kept for replacements)" -> Heifer Calves weaned and sold ( 15 kept for replacements)
A6: Cull Cows | B6: ='Basic Info'!B21 -> 70 | C6: per cwt | D6: x | E6: ='Basic Info'!C12 -> 1300 | F6: lbs | G6: x | H6: ='Basic Info'!B12/'Basic Info'!B5 -> 0.15 | I6: = | J6: =((B6*E6)/100)*H6 -> 136.5 | K6: =((B6*E6)/100)*'Basic Info'!B12 -> 13650 | M6: ='Basic Info'!B12 -> 15 | N6: Cull Cows sold
A7: Other Income | J7: =((B7*E7)/100)*H7 -> 0 | K7: 0
A8: Gross Income | J8: =SUM(J4:J7) -> 837 | K8: =SUM(K4:K7) -> 83700
A10: Feed Costs:
A11: Pasture | B11: (from pasture tab) | J11: =Pasture!C24 -> 170.8 | K11: =Pasture!C23 -> 17080
A12: Residue/Cover Crop | B12: (from residue & cover crop tab) | J12: ='Residue&CoverCrop'!C24 -> 93 | K12: ='Residue&CoverCrop'!C23 -> 9300
A13: Hay and Forage | B13: (from hay & forage tab) | J13: ='Hay&Forage'!P19 -> 137.525625 | K13: ='Hay&Forage'!P18 -> 13752.5625
A14: Grain/Protein/Mineral | B14: (from feedstuffs tab) | J14: =Feedstuffs!O19 -> 96.4125 | K14: =Feedstuffs!O18 -> 9641.25
A15: Total Feed Costs | J15: =SUM(J11:J14) -> 497.738125 | K15: =SUM(K11:K14) -> 49773.8125 | M15: =((J15-J6-J7)/((H4*E4)+(E5*H5)))*100 -> 90.87751572 | N15: Breakeven calf sales price over feed costs
A17: Non-Feed Cash Costs:
A18: Veterinary Care and Pharmaceuticals | B18: (from non-feed cost tab) | J18: ='Non-Feed Costs'!D12 -> 39.9 | K18: ='Non-Feed Costs'!D11 -> 3990
A19: Marketing/Sale Barn fees | B19: (from non-feed cost tab) | J19: ='Non-Feed Costs'!D20 -> 13.5 | K19: ='Non-Feed Costs'!D19 -> 1350
A20: Annual Bull Charge and A.I. | B20: (from non-feed cost tab) | J20: ='Non-Feed Costs'!B29+'Non-Feed Costs'!G29 -> 57.5 | K20: ='Non-Feed Costs'!B28+'Non-Feed Costs'!G28 -> 5750
A21: Hired Labor | B21: (from non-feed cost tab) | J21: ='Non-Feed Costs'!B38 -> 30 | K21: ='Non-Feed Costs'!B37 -> 3000
A22: Cash Interest | B22: (from non-feed cost tab) | J22: ='Non-Feed Costs'!D65 -> 34.75 | K22: ='Non-Feed Costs'!D64 -> 3475
A23: Total Non-Feed Cash Costs | J23: =SUM(J18:J22) -> 175.65 | K23: =SUM(K18:K22) -> 17565
A24: Total Cash Costs | J24: =J15+J23 -> 673.388125 | K24: =K15+K23 -> 67338.8125 | M24: =((J24-J6-J7)/((H4*E4)+(E5*H5)))*100 -> 135.066195 | N24: Breakeven calf sales price over cash costs
A26: Overhead Costs:
A27: Replacement Heifers* | B27: (from non-feed cost tab) | J27: =IF('Non-Feed Costs'!C68="No","",'Non-Feed Costs'!B75) ->  | K27: =IF('Non-Feed Costs'!C68="No","",'Non-Feed Costs'!B74) ->  | M27: *Used only if replacement heifers are purchased
A28: Cow Depreciation* | B28: (from non-feed cost tab) | J28: =IF('Non-Feed Costs'!C68="No","",'Non-Feed Costs'!E75) ->  | K28: =IF('Non-Feed Costs'!C68="No","",'Non-Feed Costs'!E74) -> 
A29: Machinery, Facility/Equip. Depreciation | B29: (from non-feed cost tab) | J29: ='Non-Feed Costs'!F55 -> 58.75 | K29: ='Non-Feed Costs'!F54 -> 5875
A30: Machinery, Facility/Equip. Repairs | J30: =K30/'Basic Info'!$B$5 -> 50 | K30: 5000
A31: Utilities | J31: =K31/'Basic Info'!$B$5 -> 14 | K31: 1400
A32: Fuel | J32: =K32/'Basic Info'!$B$5 -> 20 | K32: 2000
A33: Taxes | J33: =K33/'Basic Info'!$B$5 -> 8 | K33: 800
A34: Farm/Livestock Insurance | J34: =K34/'Basic Info'!$B$5 -> 13 | K34: 1300
A35: Other costs | J35: 0 | K35: 0
A36: Total Overhead Costs | J36: =SUM(J27:J35) -> 163.75 | K36: =SUM(K27:K35) -> 16375
A37: Total Costs | J37: =J24+J36 -> 837.138125 | K37: =K36+K24 -> 83713.8125 | M37: =((J37-J6-J7)/((H4*E4)+(E5*H5)))*100 -> 176.2611635 | N37: Breakeven calf sales price over total costs
A39: Income Over Cash Costs | J39: =J8-J24 -> 163.611875 | K39: =K8-K24 -> 16361.1875
A40: Income Over Total Costs | J40: =J8-J37 -> -0.138125 | K40: =K8-K37 -> -13.8125
A43: Kansas State University, Department of Agricultural Economics - www.agmanager.info
A44: Publication: Detailed Cow/Calf Budget | I44: =TEXT(Introduction!L8,"MMM. DD, YYYY") -> Version- 10/1/2021
A47: Breakeven calf sales price over feed costs | C47: =M15 -> 90.87751572
A48: Breakeven calf sales price over cash costs | C48: =M24 -> 135.066195
A49: Breakeven calf sales price over total costs | C49: =M37 -> 176.2611635
A88: Kansas State University, Department of Agricultural Economics - www.agmanager.info
A89: Publication: Detailed Cow/Calf Budget | J89: =I44 -> Version- 10/1/2021
